bitfinex/quotes_SOLUSD_20241202
["timestamp","ask_amount","ask_price","bid_price","bid_amount"]
[1733116234597,20.0,230.17,230.04,23.776884]
[1733116235100,20.0,230.17,230.03,23.776884]
[1733116235299,20.0,230.17,230.02,23.776884]
[1733116235515,20.0,230.16,230.01,23.776884]
[1733116239507,30.0,230.06,230.01,23.776884]
[1733116240899,30.0,230.06,230.02,11.32292317]
[1733116241105,16.6053658,230.2,230.01,23.776884]
[1733116241106,20.0,230.17,230.04,35.09980717]
[1733116241282,20.0,230.17,230.06,23.776884]
[1733116241481,30.0,230.07,230.06,23.776884]
[1733116241802,16.6053658,230.2,230.06,23.776884]
[1733116243307,20.0,230.17,230.06,23.776884]
[1733116243987,20.0,230.17,230.05,23.776884]
[1733116244313,20.0,230.17,230.04,23.776884]
[1733116247015,20.0,230.17,230.04,12.18990385]
[1733116247300,20.0,230.17,230.05,23.776884]
[1733116248189,10.0,230.17,230.05,23.776884]
[1733116250110,10.0,230.17,230.06,0.86693422]
[1733116250306,10.0,230.17,230.07,23.776884]
[1733116251694,0.5117658,230.2,230.09,23.776884]
[1733116256693,30.0,230.1,230.08,22.0394]
[1733116256895,30.0,230.1,230.03,23.776884]
[1733116258721,30.0,230.1,230.03,35.96682206]
[1733116260624,20.0,230.19,230.03,35.96682206]
[1733116261001,20.0,230.19,230.03,35.09980717]
[1733116261246,20.0,230.15,230.03,23.776884]
[1733116266026,30.0,230.09,230.03,23.776884]
[1733116266404,30.0,230.09,230.05,35.09980717]
[1733116266607,30.0,230.09,230.05,23.776884]
[1733116266800,30.0,230.09,230.06,23.776884]
[1733116268415,16.2224,230.18,230.06,23.776884]
[1733116268602,16.2224,230.18,230.05,23.776884]
[1733116269828,0.5117658,230.2,230.05,23.776884]
[1733116270216,20.5117658,230.2,230.05,23.776884]
[1733116271702,20.0,230.19,230.05,23.776884]
[1733116272394,20.5117658,230.2,230.05,23.776884]
[1733116276256,20.5117658,230.2,230.06,21.9434]
[1733116276424,0.5117658,230.2,230.07,23.776884]
[1733116279323,0.5117658,230.2,230.07,35.09980717]
[1733116280002,0.5117658,230.2,230.08,11.32292317]
[1733116280200,0.5117658,230.2,230.11,23.776884]
[1733116280415,30.0,230.12,230.11,23.776884]
[1733116281132,0.5117658,230.2,230.12,23.776884]
[1733116281438,0.5117658,230.2,230.16,11.32292317]
[1733116281724,0.5117658,230.2,230.19,23.776884]
[1733116282407,0.5117658,230.2,230.18,23.776884]
[1733116283329,0.5117658,230.2,230.19,58.65753444]
[1733116284241,0.5117658,230.2,230.19,59.65050298]
[1733116288616,0.5117658,230.2,230.19,62.0110482]
[1733116289130,0.5117658,230.2,230.19,48.32757981]
[1733116289333,0.5117658,230.2,230.19,17.04956854]
[1733116289506,0.5117658,230.2,230.19,0.99296854]
[1733116290836,30.5117658,230.2,230.19,0.99296854]
[1733116294806,30.5117658,230.2,230.19,24.76985254]
[1733116295139,30.5117658,230.2,230.19,106.09277571]
[1733116295833,0.5117658,230.2,230.19,94.76985254]
[1733116300140,109.91328104,230.5,230.26,5.0]
[1733116301515,30.0,230.27,230.26,5.0]
[1733116302451,30.0,230.27,230.24,10.0]
[1733116302738,30.0,230.26,230.24,10.0]
[1733116303527,30.0,230.26,230.24,5.0]
[1733116303728,30.0,230.26,230.2,10.0]
[1733116304037,30.0,230.26,230.22,5.0]
[1733116305143,30.0,230.26,230.22,10.0]
[1733116306829,30.0,230.26,230.25,10.0]
[1733116307452,16.4792,230.37,230.25,10.0]
[1733116307741,16.4792,230.37,230.27,5.0]
[1733116308146,20.0,230.34,230.27,5.0]
[1733116310430,30.0,230.28,230.27,5.0]
[1733116311339,30.0,230.28,230.27,28.776884]
[1733116311541,30.0,230.28,230.27,33.776884]
[1733116312043,15.6096,230.43,230.3,5.0]
[1733116312344,30.0,230.31,230.3,28.776884]
[1733116312724,30.0,230.31,230.3,5.0]
[1733116313225,15.6096,230.43,230.31,5.0]
[1733116313540,30.0,230.32,230.31,5.0]
[1733116314252,30.0,230.32,230.3,5.0]
[1733116318448,15.6096,230.43,230.3,5.0]
[1733116318449,20.0,230.4,230.3,5.0]
[1733116318648,20.0,230.4,230.31,5.0]
[1733116319132,20.0,230.4,230.33,10.0]
[1733116319335,15.6096,230.43,230.35,10.0]
[1733116319538,18.13761397,230.49,230.35,10.0]
[1733116319732,15.7891,230.49,230.35,10.0]
[1733116320058,15.7891,230.49,230.37,10.0]
[1733116320349,30.0,230.38,230.37,10.0]
[1733116320537,15.7891,230.49,230.37,10.0]
[1733116320938,15.7891,230.49,230.37,5.0]
[1733116321336,20.0,230.46,230.37,10.0]
[1733116321634,30.0,230.38,230.37,5.0]
[1733116321832,30.0,230.38,230.37,10.0]
[1733116322034,30.0,230.38,230.37,5.0]
[1733116322534,30.0,230.38,230.37,10.0]
[1733116323451,20.0,230.46,230.37,10.0]
[1733116324945,20.0,230.46,230.37,5.0]
[1733116325153,20.0,230.46,230.37,10.0]
[1733116326146,20.0,230.46,230.39,5.0]
[1733116326859,30.0,230.4,230.39,10.0]
[1733116328449,30.0,230.4,230.35,5.0]
[1733116328652,30.0,230.4,230.32,5.0]
[1733116329027,30.0,230.4,230.33,5.0]
[1733116330246,30.0,230.4,230.3,5.0]
[1733116330449,30.0,230.39,230.31,5.0]
[1733116330851,30.0,230.39,230.35,5.0]
[1733116331061,30.0,230.39,230.38,5.0]
[1733116331733,30.0,230.39,230.36,21.8171]
[1733116332138,2.25194281,230.53,230.36,16.8171]
[1733116332337,30.0,230.38,230.34,10.0]
[1733116333552,20.0,230.52,230.34,10.0]
[1733116334047,20.0,230.52,230.37,5.0]
[1733116334656,20.0,230.52,230.37,10.0]
[1733116334835,24.98908638,230.55,230.4,5.0]
[1733116335040,24.98908638,230.55,230.41,5.0]
[1733116335247,30.0,230.42,230.41,5.0]
[1733116336277,20.0,230.52,230.41,5.0]
[1733116337259,20.0,230.52,230.43,5.0]
[1733116338947,20.0,230.52,230.42,5.0]
[1733116339149,30.0,230.43,230.42,5.0]
[1733116339363,30.0,230.43,230.41,5.0]
[1733116339563,30.0,230.43,230.42,5.0]
[1733116340756,30.0,230.43,230.41,5.0]
[1733116341768,30.0,230.43,230.42,5.0]
[1733116341967,30.0,230.43,230.41,5.0]
[1733116342142,30.0,230.43,230.42,5.0]
[1733116344351,20.0,230.52,230.42,5.0]
[1733116344864,20.0,230.52,230.44,5.0]
[1733116345077,30.0,230.45,230.44,5.0]
[1733116346860,16.2921,230.55,230.46,5.0]
[1733116347069,30.0,230.47,230.46,5.0]
[1733116350582,30.0,230.47,230.45,5.0]
[1733116350881,30.0,230.47,230.46,5.0]
[1733116351251,30.0,230.47,230.45,5.0]
[1733116352052,30.0,230.47,230.42,5.0]
[1733116353069,30.0,230.46,230.42,5.0]
[1733116353476,20.0,230.43,230.4,50.18046086]
[1733116354063,30.0,230.41,230.4,50.18046086]
[1733116364480,30.0,230.41,230.4,34.87187674]
[1733116366489,28.5,230.41,230.4,34.87187674]
[1733116369259,28.23968,230.41,230.4,34.87187674]
[1733116370393,28.23968,230.41,230.4,1e-08]
[1733116372278,51.81738,230.41,230.4,1e-08]
[1733116372470,20.0,230.37,230.24,11.0652]
[1733116373168,20.0,230.37,230.24,4.5]
[1733116373369,20.0,230.31,230.24,4.5]
[1733116374489,30.0,230.29,230.24,4.5]
[1733116374673,20.0,230.26,230.24,4.5]
[1733116375572,30.0,230.25,230.24,4.5]
[1733116389781,22.28648666,230.31,230.24,4.5]
[1733116391095,17.8497,230.4,230.24,4.5]
[1733116391310,17.8497,230.4,230.24,9.5]
[1733116391480,17.8497,230.4,230.24,4.5]
[1733116392789,30.0,230.25,230.24,9.5]
[1733116393297,30.0,230.25,230.24,4.5]
[1733116407922,30.0,230.25,230.24,9.5]
[1733116408090,17.8497,230.4,230.25,5.0]
[1733116408430,30.0,230.26,230.25,5.0]
[1733116408798,30.0,230.26,230.24,9.5]
[1733116409004,30.0,230.26,230.25,5.0]
[1733116409198,20.10782163,230.4,230.25,29.9915]
[1733116409714,20.0,230.37,230.28,5.0]
[1733116409924,30.0,230.29,230.28,5.0]
[1733116410431,20.0,230.37,230.28,5.0]
[1733116410810,30.0,230.29,230.28,5.0]
[1733116411111,20.0,230.26,230.24,4.5]
[1733116411910,30.0,230.25,230.24,4.5]
[1733116412107,30.0,230.25,230.24,9.5]
[1733116412516,20.0,230.36,230.24,9.5]
[1733116413025,20.0,230.37,230.24,9.5]
[1733116415410,30.0,230.25,230.24,9.5]
[1733116415830,30.0,230.25,230.24,57.904984]
[1733116416028,30.0,230.25,230.24,69.22790717]
[1733116416029,11.85,230.25,230.24,69.22790717]
[1733116416238,17.7464,230.46,230.24,69.22790717]
[1733116416239,17.7464,230.46,230.31,5.0]
[1733116416734,30.0,230.32,230.31,5.0]
[1733116417707,30.0,230.32,230.29,5.0]
[1733116417911,30.0,230.32,230.27,5.0]
[1733116418535,30.0,230.32,230.27,10.0]
[1733116418862,30.0,230.32,230.28,5.0]
[1733116420331,30.0,230.32,230.26,5.0]
[1733116421128,30.0,230.32,230.24,34.1281]
[1733116421129,20.0,230.29,230.24,34.1281]
[1733116421426,30.0,230.28,230.24,34.1281]
[1733116421633,30.0,230.28,230.26,5.0]
[1733116422321,30.0,230.28,230.24,34.1281]
[1733116423318,30.0,230.28,230.26,5.0]
[1733116425132,30.0,230.28,230.24,16.7551]
[1733116425810,30.0,230.28,230.24,11.7551]
[1733116426011,30.0,230.28,230.26,5.0]
[1733116426522,30.0,230.28,230.24,16.7551]
[1733116426721,30.0,230.28,230.24,21.7551]
[1733116426928,30.0,230.28,230.24,16.7551]
[1733116428631,30.0,230.28,230.24,4.5]
[1733116429217,20.0,230.25,230.24,4.5]
[1733116429517,50.0,230.25,230.24,4.5]
[1733116431338,30.0,230.25,230.24,4.5]
[1733116437533,30.0,230.25,230.24,9.5]
[1733116438927,30.0,230.25,230.24,14.5]
[1733116439634,30.0,230.25,230.24,9.5]
[1733116441426,30.0,230.25,230.24,14.5]
[1733116442353,20.0,230.35,230.29,5.0]
[1733116442534,30.0,230.3,230.29,5.0]
[1733116442852,30.0,230.3,230.27,5.0]
[1733116443048,30.0,230.3,230.25,10.0]
[1733116443357,30.0,230.3,230.27,5.0]
[1733116446849,30.0,230.3,230.27,10.0]
[1733116447062,30.0,230.3,230.29,5.0]
[1733116447760,30.0,230.3,230.29,10.0]
[1733116457261,20.0,230.4,230.29,10.0]
[1733116457458,20.0,230.4,230.31,5.0]
[1733116457768,30.0,230.32,230.29,5.0]
[1733116458064,20.0,230.4,230.29,5.0]
[1733116460364,30.0,230.31,230.29,5.0]
[1733116461665,29.9,230.31,230.29,5.0]
[1733116464351,20.0,230.28,230.26,1.1366413]
[1733116464664,30.0,230.27,230.26,1.1366413]
[1733116475049,38.709178,230.3,230.29,5.0]
[1733116475370,38.709178,230.3,230.29,10.0]
[1733116475560,38.709178,230.3,230.29,5.0]
[1733116475965,38.709178,230.3,230.26,1.1366413]
[1733116478450,20.0,230.27,230.26,1.1366413]
[1733116478952,19.5,230.27,230.26,1.1366413]
[1733116480168,49.5,230.27,230.26,1.1366413]
[1733116486278,20.0,230.25,230.24,4.5]
[1733116486463,50.0,230.25,230.24,4.5]
[1733116497875,50.0,230.25,230.13,5.0]
[1733116498080,20.0,230.18,230.13,5.0]
[1733116498681,20.0,230.18,230.14,5.0]
[1733116498990,30.0,230.16,230.14,5.0]
[1733116499193,20.0,230.25,230.14,5.0]
[1733116501484,6.6249,230.28,230.19,5.0]
[1733116501665,30.0,230.2,230.19,5.0]
[1733116504583,20.0,230.25,230.19,5.0]
[1733116506396,20.0,230.25,230.17,5.0]
[1733116506601,20.0,230.25,230.16,5.0]
[1733116506602,20.0,230.25,230.19,5.0]
[1733116506965,6.6905,230.35,230.21,5.0]
[1733116507183,30.0,230.24,230.23,10.0]
[1733116508576,38.709178,230.3,230.23,10.0]
[1733116508780,38.709178,230.3,230.28,5.0]
[1733116508980,30.0,230.29,230.28,5.0]
[1733116511379,30.0,230.29,230.26,5.0]
[1733116511593,30.0,230.28,230.26,5.0]
[1733116512969,30.0,230.28,230.27,5.0]
[1733116513782,38.709178,230.3,230.27,5.0]
[1733116513984,38.709178,230.3,230.29,10.0]
[1733116515378,38.709178,230.3,230.29,5.0]
[1733116515694,38.709178,230.3,230.29,10.0]
[1733116516175,68.709178,230.3,230.29,10.0]
[1733116519606,68.709178,230.3,230.29,5.0]
[1733116520097,68.709178,230.3,230.29,10.0]
[1733116521818,68.709178,230.3,230.29,21.32292317]
[1733116522305,38.709178,230.3,230.29,45.09980717]
[1733116522484,38.709178,230.3,230.29,46.09234452]
[1733116523110,38.709178,230.3,230.29,10.99253735]
[1733116526111,38.709178,230.3,230.29,10.0]
[1733116526910,33.709178,230.3,230.29,10.0]
[1733116527495,33.709178,230.3,230.29,5.0]
[1733116528014,63.709178,230.3,230.29,5.0]
[1733116531455,63.709178,230.3,230.27,5.0]
[1733116531628,63.709178,230.3,230.29,5.0]
[1733116531927,63.709178,230.3,230.27,5.0]
[1733116533425,20.0,230.27,230.2,10.0]
[1733116533722,63.709178,230.3,230.12,7.7769]
[1733116533723,20.0,230.23,230.18,5.0]
[1733116534918,20.0,230.23,230.16,5.0]
[1733116535124,20.0,230.23,230.18,5.0]
[1733116536431,20.0,230.23,230.14,5.0]
[1733116536632,20.0,230.23,230.17,5.0]
[1733116539440,20.0,230.23,230.16,5.0]
[1733116539618,27.2193,230.23,230.13,10.0]
[1733116539827,27.2193,230.23,230.13,5.0]
[1733116540016,27.2193,230.23,230.13,10.0]
[1733116540338,29.506284,230.23,230.16,5.0]
[1733116540518,27.2193,230.23,230.18,5.0]
[1733116540720,20.0,230.23,230.18,5.0]
[1733116541739,20.0,230.23,230.14,5.0]
[1733116541943,20.0,230.23,230.15,5.0]
[1733116543543,20.0,230.23,230.14,5.0]
[1733116543847,20.0,230.23,230.15,5.0]
[1733116544219,20.0,230.23,230.14,5.0]
[1733116545825,20.0,230.18,230.09,5.0]
[1733116546522,20.0,230.18,230.08,10.0]
[1733116546922,20.0,230.18,230.11,5.0]
[1733116547123,20.0,230.18,230.13,5.0]
[1733116549835,20.0,230.18,230.15,5.0]
[1733116550222,20.0,230.18,230.13,5.0]
[1733116551547,20.0,230.18,230.1,5.0]
[1733116552325,20.0,230.14,230.08,5.0]
[1733116555451,20.0,230.14,230.11,5.0]
[1733116556535,20.0,230.14,230.05,5.0]
[1733116556846,20.0,230.14,230.07,5.0]
[1733116557052,19.4317782,230.14,230.07,5.0]
[1733116557252,19.4317782,230.14,230.09,5.0]
[1733116557831,19.4317782,230.14,230.05,5.0]
[1733116559336,19.4317782,230.14,230.03,5.0]
[1733116559337,19.4992,230.12,230.03,5.0]
[1733116559541,20.0,230.05,229.97,5.0]
[1733116560150,20.0,230.05,230.0,5.0]
[1733116560932,20.0,230.05,230.03,5.0]
[1733116561144,19.4992,230.08,230.03,5.0]
[1733116561145,19.4992,230.08,230.04,5.0]
[1733116561546,19.4992,230.08,230.06,5.0]
[1733116562056,19.4992,230.08,230.04,10.0]
[1733116562359,19.4992,230.08,230.06,5.0]
[1733116562536,19.4992,230.08,230.07,5.0]
[1733116563432,19.2463,230.15,230.08,5.0]
[1733116563635,19.2463,230.15,230.09,5.0]
[1733116564251,19.2463,230.15,230.1,5.0]
[1733116564552,19.2463,230.15,230.11,5.0]
[1733116565143,7.4259,230.19,230.13,5.0]
[1733116565446,7.4259,230.19,230.14,5.0]
[1733116566364,7.4259,230.19,230.13,5.0]
[1733116566536,20.0,230.16,230.12,5.0]
[1733116566843,20.0,230.16,230.04,27.6384124]
[1733116566844,20.0,230.16,230.14,5.0]
[1733116567244,20.0,230.16,230.1,5.0]
[1733116568345,20.0,230.16,230.12,5.0]
[1733116569140,20.0,230.16,230.1,5.0]
[1733116569342,20.0,230.16,230.12,5.0]
[1733116569845,20.0,230.16,230.15,5.0]
[1733116570247,19.3017,230.2,230.17,5.0]
[1733116571552,20.0,230.17,230.15,10.0]
[1733116571736,20.0,230.17,230.15,5.0]
[1733116572238,19.3017,230.2,230.15,10.0]
[1733116572438,18.4482,230.26,230.19,5.0]
[1733116572660,18.4482,230.26,230.21,5.0]
[1733116572837,23.709178,230.2,230.12,18.55864677]
[1733116573160,23.709178,230.2,230.13,23.776884]
[1733116573365,23.709178,230.2,230.14,0.86660067]
[1733116573549,23.709178,230.2,230.15,7.5791]
[1733116575861,23.709178,230.2,230.16,42.33545735]
[1733116576051,23.709178,230.2,230.16,0.86659893]
[1733116576258,23.709178,230.2,230.15,24.64349417]
[1733116576516,23.709178,230.2,230.18,23.776884]
[1733116576757,23.709178,230.2,230.18,24.64329674]
[1733116578762,23.709178,230.2,230.18,42.33527116]
[1733116579670,23.709178,230.2,230.16,23.776884]
[1733116579857,23.709178,230.2,230.15,0.86641013]
[1733116580341,23.709178,230.2,230.14,17.8537]
[1733116580546,23.709178,230.2,230.11,17.69197442]
[1733116580857,23.709178,230.2,230.09,26.798]
[1733116581055,20.0,230.17,230.09,26.798]
[1733116581257,20.0,230.17,230.04,18.55880516]
[1733116581552,20.0,230.17,230.06,17.69197442]
[1733116581765,20.0,230.17,230.07,0.86682664]
[1733116582145,20.0,230.17,230.07,18.55880106]
[1733116582766,20.0,230.17,230.07,0.86682664]
[1733116583263,20.0,230.17,230.08,23.776884]
[1733116584576,20.0,230.17,230.09,0.86684021]
[1733116585457,42.859278,230.2,230.09,0.86684021]
[1733116586552,42.859278,230.2,230.1,23.776884]
[1733116586752,42.859278,230.2,230.09,0.86684021]
[1733116586948,42.859278,230.2,230.07,17.69197442]
[1733116587152,42.859278,230.2,230.07,18.55881791]
[1733116587358,42.859278,230.2,230.08,23.776884]
[1733116587560,20.0,230.17,230.08,23.776884]
[1733116588543,20.0,230.17,230.09,0.8668418]
[1733116589672,20.0,230.17,230.06,17.69197442]
[1733116589875,20.0,230.17,230.07,0.8668691]
[1733116590554,20.0,230.17,230.08,41.46885842]
[1733116590750,20.0,230.17,230.07,0.8668691]
[1733116590751,42.859278,230.2,230.12,17.69197442]
[1733116590950,42.859278,230.2,230.13,18.55866632]
[1733116591658,30.0,230.15,230.13,0.8666919]
[1733116591959,30.0,230.15,230.12,35.09193203]
[1733116592154,30.0,230.15,230.14,35.09193203]
[1733116592670,30.0,230.15,230.11,35.09193203]
[1733116593050,30.0,230.15,230.13,23.776884]
[1733116593257,30.0,230.15,230.11,11.31504803]
[1733116593670,30.0,230.15,230.11,41.45946344]
[1733116594579,30.0,230.15,230.14,41.45946344]
[1733116596486,30.0,230.15,230.14,23.776884]
[1733116597179,30.0,230.15,230.13,18.54922902]
[1733116597473,30.0,230.15,230.14,41.45946344]
[1733116597677,23.709178,230.19,230.14,41.45946344]
[1733116597869,23.709178,230.19,230.15,0.86650856]
[1733116598176,23.709178,230.19,230.17,17.68257944]
[1733116598355,30.0,230.18,230.15,0.86650856]
[1733116598560,30.0,230.18,230.17,17.68257944]
[1733116598773,23.709178,230.19,230.17,17.68257944]
[1733116599575,23.709178,230.19,230.16,17.68257944]
[1733116601767,23.709178,230.19,230.17,17.68257944]
[1733116601963,23.709178,230.19,230.18,17.68257944]
[1733116602354,7.5450774,230.19,230.18,117.32592944]
[1733116602679,19.7185,230.35,230.19,28.776884]
[1733116602871,19.7185,230.35,230.22,17.68257944]
[1733116603067,19.7185,230.35,230.23,0.86626834]
[1733116604173,20.0,230.32,230.23,0.86626834]
[1733116605988,20.0,230.32,230.21,18.54885613]
[1733116606885,20.0,230.32,230.21,0.86627669]
[1733116607876,20.0,230.32,230.2,0.86633189]
[1733116609877,20.0,230.28,230.13,18.54904134]
[1733116610180,20.0,230.28,230.13,0.8664619]
[1733116610389,20.0,230.28,230.13,18.54904134]
[1733116611281,20.0,230.24,230.12,17.68257944]
[1733116611662,20.0,230.2,230.11,17.68257944]
[1733116611862,20.0,230.2,230.1,18.54917595]
[1733116612587,20.0,230.2,230.11,17.68257944]
[1733116612796,20.0,230.2,230.12,0.86667502]
[1733116613281,19.6427,230.19,230.09,17.68257944]
[1733116613485,19.6427,230.19,230.1,0.86673543]
[1733116613789,19.6427,230.19,230.1,18.54931487]
[1733116614864,19.6427,230.19,230.11,17.68257944]
[1733116615064,19.6427,230.19,230.11,18.54931649]
[1733116615992,19.6427,230.19,230.11,17.68257944]
[1733116616584,19.6427,230.19,230.1,17.68257944]
[1733116616783,19.6427,230.19,230.11,18.54934581]
[1733116621605,19.6427,230.19,230.11,12.18298274]
[1733116622381,19.6427,230.19,230.14,11.31621637]
[1733116622590,19.6427,230.19,230.15,0.86666833]
[1733116622920,19.6427,230.19,230.12,23.776884]
[1733116623193,19.6427,230.19,230.12,11.31621637]
[1733116623792,19.6427,230.19,230.13,11.31621637]
[1733116625193,19.6427,230.19,230.12,11.31621637]
[1733116626195,19.6427,230.19,230.13,11.31621637]
[1733116627095,19.6427,230.19,230.16,11.31621637]
[1733116627584,19.6427,230.19,230.12,24.64352326]
[1733116627585,19.6427,230.19,230.14,11.31621637]
[1733116628178,19.6427,230.19,230.14,12.18279489]
[1733116628402,19.6427,230.19,230.14,0.86657852]
[1733116628596,19.6427,230.19,230.14,23.776884]
[1733116628796,19.6427,230.19,230.12,23.776884]
[1733116629402,19.6427,230.19,230.11,23.776884]
[1733116629604,19.6427,230.19,230.11,35.09310037]
[1733116629902,19.6427,230.19,230.14,11.31621637]
[1733116630601,19.6427,230.19,230.13,12.1828407]
[1733116631789,19.6427,230.19,230.13,23.776884]
[1733116632186,19.6427,230.19,230.11,11.31621637]
[1733116632384,19.6427,230.19,230.12,12.18290981]
[1733116634407,19.6427,230.19,230.09,0.86667622]
[1733116634715,19.6427,230.19,230.11,11.31621637]
[1733116634891,19.6427,230.19,230.12,35.09310037]
[1733116635099,19.6427,230.19,230.12,12.18293526]
[1733116635721,19.6427,230.19,230.13,11.31621637]
[1733116636027,19.6427,230.19,230.14,12.18280094]
[1733116636188,19.6427,230.19,230.15,23.776884]
[1733116636915,18.8075,230.27,230.18,35.09310037]
[1733116637214,18.8075,230.27,230.2,23.776884]
[1733116638099,18.8075,230.27,230.16,12.18261696]
[1733116638288,18.8075,230.27,230.17,23.776884]
[1733116639599,18.8075,230.27,230.16,0.86640059]
[1733116639790,18.8075,230.27,230.15,23.776884]
[1733116640307,20.0,230.24,230.14,23.776884]
[1733116640515,20.0,230.24,230.12,23.776884]
[1733116640516,20.6205,230.23,230.12,23.776884]
[1733116640895,20.6205,230.23,230.1,0.86662137]
[1733116641109,20.6205,230.23,230.1,12.18283774]
[1733116641610,8.3141,230.22,230.1,12.18283774]
[1733116642586,8.3141,230.22,230.11,23.776884]
[1733116644702,8.3141,230.22,230.12,0.86669871]
[1733116646585,8.3141,230.22,230.12,23.776884]
[1733116651550,20.0,230.19,230.12,23.776884]
[1733116651720,20.0,230.19,230.13,0.86666028]
[1733116652321,8.3141,230.22,230.13,0.86666028]
[1733116652520,8.3141,230.22,230.12,41.46047768]
[1733116652731,8.3141,230.22,230.16,17.68359368]
[1733116653018,20.6205,230.23,230.17,18.55011996]
[1733116653207,20.6205,230.23,230.13,18.5500834]
[1733116653409,20.6205,230.23,230.14,23.776884]
[1733116655699,20.6205,230.23,230.13,23.776884]
[1733116656609,20.6205,230.23,230.15,23.776884]
[1733116657729,20.6205,230.23,230.13,23.776884]
[1733116658304,20.6205,230.23,230.12,23.776884]
[1733116658519,20.6205,230.23,230.14,23.776884]
[1733116662803,20.6205,230.23,230.13,23.776884]
[1733116663926,30.0,230.18,230.13,23.776884]
[1733116667829,20.6205,230.23,230.13,23.776884]
[1733116669420,20.6205,230.23,230.15,35.09283622]
[1733116669622,20.6205,230.23,230.17,23.776884]
[1733116673027,20.6205,230.23,230.15,23.776884]
[1733116673924,20.6205,230.23,230.13,23.776884]
[1733116674606,20.6205,230.23,230.12,20.86661183]
[1733116674809,20.6205,230.23,230.12,0.86661183]
[1733116675008,20.6205,230.23,230.11,0.866698]
[1733116675908,20.6205,230.23,230.11,23.776884]
[1733116676232,20.6205,230.23,230.11,24.64356934]
[1733116676438,7.7842,230.22,230.08,0.86669453]
[1733116676743,7.7842,230.22,230.09,11.31595222]
[1733116676911,30.0,230.17,230.09,11.31595222]
[1733116677238,30.0,230.17,230.1,0.86678217]
[1733116677733,30.0,230.17,230.1,12.18273439]
[1733116678620,30.0,230.17,230.1,0.86678217]
[1733116681637,30.0,230.17,230.09,11.31595222]
[1733116681638,30.0,230.17,230.09,23.776884]
[1733116682734,30.0,230.17,230.09,35.09283622]
[1733116682925,30.0,230.17,230.11,23.776884]
[1733116683127,30.0,230.17,230.13,23.776884]
[1733116684720,30.0,230.17,230.11,23.776884]
[1733116686646,30.0,230.17,230.13,23.776884]
[1733116687821,30.0,230.17,230.05,23.776884]
[1733116688026,30.0,230.17,230.07,23.776884]
[1733116688344,30.0,230.17,230.09,23.776884]
[1733116689141,30.0,230.17,230.11,23.776884]
[1733116690835,20.0,230.14,230.11,23.776884]
[1733116691146,20.0,230.14,230.09,23.776884]
[1733116691334,20.0,230.14,230.09,24.64368654]
[1733116694048,20.0,230.14,230.09,35.95963876]
[1733116695056,20.0,230.14,230.1,11.31595222]
[1733116695248,30.0,230.17,230.14,23.776884]